[Event "Schack-SM 2024: Mastarklassen"]
[Site "Fortnox Arena, Hejaregatan 5, Vaxjo, Sweden"]
[Date "2024.07.06"]
[Round "8.5"]
[White "Joensson, Jacob"]
[Black "Johnson, Daniel"]
[Result "1/2-1/2"]
[TimeControl "90 minutes for 40 moves + 30 minutes for the rest of the game + 30 seconds per move from move one."]
[WhiteElo "2068"]
[BlackElo "2126"]

1. d4 {[%clk 01:30:58]} {[%emt 00:00:02]} Nf6 {[%clk 01:23:46]} {[%emt
00:07:15]} 2. c4 {[%clk 01:31:23]} {[%emt 00:00:05]} e6 {[%clk 01:24:11]}
{[%emt 00:00:04]} 3. Bf4 {[%clk 01:31:50]} {[%emt 00:00:04]} b6 {[%clk
01:24:34]} {[%emt 00:00:06]} 4. e3 {[%clk 01:32:15]} {[%emt 00:00:05]} Bb7
{[%clk 01:25:00]} {[%emt 00:00:05]} 5. Nf3 {[%clk 01:32:37]} {[%emt 00:00:08]}
Bb4+ {[%clk 01:24:37]} {[%emt 00:00:50]} 6. Nfd2 {[%clk 01:33:02]} {[%emt
00:00:08]} O-O {[%clk 01:24:36]} {[%emt 00:00:31]} 7. a3 {[%clk 01:33:27]}
{[%emt 00:00:05]} Bxd2+ {[%clk 01:24:00]} {[%emt 00:01:07]} 8. Nxd2 {[%clk
01:31:10]} {[%emt 00:02:47]} d6 {[%clk 01:24:13]} {[%emt 00:00:16]} 9. Bg3
{[%clk 01:28:09]} {[%emt 00:03:31]} Nbd7 {[%clk 01:24:10]} {[%emt 00:00:33]} 10.
f3 {[%clk 01:27:17]} {[%emt 00:01:20]} Qe7 {[%clk 01:12:14]} {[%emt 00:12:27]}
11. Qc2 {[%clk 01:20:17]} {[%emt 00:07:30]} e5 {[%clk 01:10:50]} {[%emt
00:01:54]} 12. O-O-O {[%clk 01:19:39]} {[%emt 00:01:10]} Rfe8 {[%clk 01:07:03]}
{[%emt 00:04:16]} 13. Kb1 {[%clk 01:14:24]} {[%emt 00:05:44]} a6 {[%clk
00:48:39]} {[%emt 00:18:54]} 14. Nb3 {[%clk 01:06:03]} {[%emt 00:08:50]} Bc6
{[%clk 00:46:39]} {[%emt 00:02:31]} 15. Nc1 {[%clk 01:05:00]} {[%emt 00:01:32]}
b5 {[%clk 00:37:26]} {[%emt 00:09:44]} 16. e4 {[%clk 00:55:49]} {[%emt
00:09:42]} bxc4 {[%clk 00:25:56]} {[%emt 00:11:59]} 17. Qxc4 {[%clk 00:55:16]}
{[%emt 00:01:03]} Bb5 {[%clk 00:24:49]} {[%emt 00:01:37]} 18. Qxc7 {[%clk
00:55:32]} {[%emt 00:00:15]} Rec8 {[%clk 00:24:50]} {[%emt 00:00:27]} 19. Qa5
{[%clk 00:55:50]} {[%emt 00:00:14]} Rab8 {[%clk 00:24:23]} {[%emt 00:00:56]} 20.
Bxb5 {[%clk 00:50:06]} {[%emt 00:06:15]} axb5 {[%clk 00:24:48]} {[%emt
00:00:04]} 21. Nd3 {[%clk 00:49:56]} {[%emt 00:00:40]} Ra8 {[%clk 00:21:21]}
{[%emt 00:03:57]} 22. Qb4 {[%clk 00:49:26]} {[%emt 00:01:00]} Ra4 {[%clk
00:10:15]} {[%emt 00:11:36]} 23. Qxb5 {[%clk 00:48:58]} {[%emt 00:00:58]} Rxd4
{[%clk 00:10:38]} {[%emt 00:00:08]} 24. Bf2 {[%clk 00:48:34]} {[%emt 00:00:53]}
Rdc4 {[%clk 00:07:24]} {[%emt 00:03:45]} 25. Rc1 {[%clk 00:48:11]} {[%emt
00:00:53]} Rxc1+ {[%clk 00:05:54]} {[%emt 00:02:01]} 26. Rxc1 {[%clk 00:48:35]}
{[%emt 00:00:07]} Rb8 {[%clk 00:06:22]} 27. Qa6 {[%clk 00:48:50]} {[%emt
00:00:14]} Qf8 {[%clk 00:02:06]} {[%emt 00:04:46]} 28. Rc7 {[%clk 00:47:38]}
{[%emt 00:01:43]} Rd8 {[%clk 00:00:48]} {[%emt 00:01:47]} 29. Qc6 {[%clk
00:47:16]} {[%emt 00:00:52]} d5 {[%clk 00:00:55]} {[%emt 00:00:23]} 30. exd5
{[%clk 00:46:59]} {[%emt 00:00:47]} Nb8 {[%clk 00:01:21]} {[%emt 00:00:05]} 31.
Qc5 {[%clk 00:46:37]} {[%emt 00:00:52]} Qe8 {[%clk 00:00:53]} {[%emt 00:00:57]}
32. Re7 {[%clk 00:45:42]} {[%emt 00:01:26]} Qa4 {[%clk 00:01:10]} {[%emt
00:00:13]} 33. Rxe5 {[%clk 00:45:16]} {[%emt 00:00:56]} Nbd7 {[%clk 00:00:58]}
{[%emt 00:00:42]} 34. Qc7 {[%clk 00:44:35]} {[%emt 00:01:12]} Qd1+ {[%clk
00:01:17]} {[%emt 00:00:11]} 35. Nc1 {[%clk 00:44:57]} {[%emt 00:00:06]} Rb8
{[%clk 00:01:17]} {[%emt 00:00:30]} 36. Re2 {[%clk 00:44:58]} {[%emt 00:00:29]}
Qxd5 {[%clk 00:01:13]} {[%emt 00:00:35]} 37. Rc2 {[%clk 00:44:39]} {[%emt
00:00:50]} Qb5 {[%clk 00:01:07]} {[%emt 00:00:34]} 38. Qc4 {[%clk 00:43:55]}
{[%emt 00:01:14]} Qf5 {[%clk 00:01:01]} {[%emt 00:00:36]} 39. Bg3 {[%clk
00:42:39]} {[%emt 00:01:46]} Re8 {[%clk 00:01:07]} {[%emt 00:00:24]} 40. Qd3
{[%clk 00:42:05]} {[%emt 00:01:04]} Qa5 {[%clk 00:00:33]} {[%emt 00:01:06]} 41.
Re2 {[%clk 00:40:41]} {[%emt 00:01:53]} Rc8 {[%clk 00:30:04]} {[%emt 00:00:58]}
42. Rd2 {[%clk 01:06:08]} {[%emt 00:05:03]} Qa8 {[%clk 00:27:03]} {[%emt
00:03:31]} 43. Nb3 {[%clk 01:02:35]} {[%emt 00:04:04]} h6 {[%clk 00:26:58]}
{[%emt 00:00:34]} 44. Rc2 {[%clk 01:02:43]} {[%emt 00:00:23]} Rd8 {[%clk
00:26:39]} {[%emt 00:00:49]} 45. Bh4 {[%clk 01:01:17]} {[%emt 00:01:54]} Nc5
{[%clk 00:24:44]} {[%emt 00:02:26]} 46. Qc4 {[%clk 01:00:25]} {[%emt 00:01:22]}
Nxb3 {[%clk 00:24:54]} {[%emt 00:00:20]} 47. Qxb3 {[%clk 01:00:35]} {[%emt
00:00:20]} Rb8 {[%clk 00:25:03]} {[%emt 00:00:21]} 48. Qd3 {[%clk 01:00:27]}
{[%emt 00:00:38]} Nd5 {[%clk 00:23:25]} {[%emt 00:02:08]} 49. Rd2 {[%clk
01:00:13]} {[%emt 00:00:44]} Nb6 {[%clk 00:22:01]} {[%emt 00:01:54]} 50. Qd8+
{[%clk 00:58:53]} {[%emt 00:01:49]} Kh7 {[%clk 00:22:11]} {[%emt 00:00:20]} 51.
Qc7 {[%clk 00:59:03]} {[%emt 00:00:20]} Na4 {[%clk 00:15:25]} {[%emt 00:07:15]}
52. Ka2 {[%clk 00:49:03]} {[%emt 00:10:31]} Nxb2 {[%clk 00:12:22]} {[%emt
00:03:34]} 53. Rd8 {[%clk 00:44:13]} {[%emt 00:05:20]} Rxd8 {[%clk 00:08:55]}
{[%emt 00:03:57]} 54. Qxd8 {[%clk 00:44:37]} {[%emt 00:00:05]} Qb7 {[%clk
00:09:16]} {[%emt 00:00:10]} 55. Qd4 {[%clk 00:44:57]} {[%emt 00:00:09]} Qb5
{[%clk 00:09:40]} {[%emt 00:00:06]} 56. Qb4 {[%clk 00:45:18]} {[%emt 00:00:09]}
Qe2 {[%clk 00:06:50]} {[%emt 00:03:19]} 57. Qxb2 {[%clk 00:42:56]} {[%emt
00:02:53]} Qc4+ {[%clk 00:07:13]} {[%emt 00:00:07]} 58. Qb3 {[%clk 00:43:18]}
{[%emt 00:00:08]} Qxh4 {[%clk 00:07:32]} {[%emt 00:00:12]} 59. h3 {[%clk
00:42:44]} {[%emt 00:01:03]} Qf2+ {[%clk 00:06:43]} {[%emt 00:01:18]} 60. Qb2
{[%clk 00:43:08]} {[%emt 00:00:08]} Qc5 {[%clk 00:06:51]} {[%emt 00:00:21]} 61.
Qe2 {[%clk 00:41:38]} {[%emt 00:02:00]} Qc3 {[%clk 00:06:20]} {[%emt 00:01:01]}
62. Qb2 {[%clk 00:40:10]} {[%emt 00:01:59]} Qc4+ {[%clk 00:06:33]} {[%emt
00:00:17]} 63. Kb1 {[%clk 00:40:25]} {[%emt 00:00:15]} Qf1+ {[%clk 00:06:06]}
{[%emt 00:00:57]} 64. Qc1 {[%clk 00:40:20]} {[%emt 00:00:36]} Qb5+ {[%clk
00:06:12]} {[%emt 00:00:24]} 65. Ka2 {[%clk 00:40:12]} {[%emt 00:00:37]} Qe2+
{[%clk 00:06:17]} {[%emt 00:00:24]} 66. Qb2 {[%clk 00:40:34]} {[%emt 00:00:08]}
1/2-1/2

[Event "Schack-SM 2024: Mastarklassen"]
[Site "Fortnox Arena, Hejaregatan 5, Vaxjo, Sweden"]
[Date "2024.07.06"]
[Round "8.6"]
[White "Bjorkman, Filip"]
[Black "Dingertz, Erik"]
[Result "1/2-1/2"]
[TimeControl "90 minutes for 40 moves + 30 minutes for the rest of the game + 30 seconds per move from move one."]
[WhiteElo "2116"]
[BlackElo "2081"]

1. e4 {[%clk 01:30:57]} {[%emt 00:00:02]} e5 {[%clk 01:30:55]} {[%emt
00:00:06]} 2. Nf3 {[%clk 01:31:21]} {[%emt 00:00:05]} Nc6 {[%clk 01:31:21]}
{[%emt 00:00:04]} 3. Bc4 {[%clk 01:31:45]} {[%emt 00:00:06]} Bc5 {[%clk
01:31:35]} {[%emt 00:00:16]} 4. c3 {[%clk 01:32:08]} {[%emt 00:00:09]} Nf6
{[%clk 01:31:53]} {[%emt 00:00:12]} 5. d4 {[%clk 01:32:32]} {[%emt 00:00:05]}
exd4 {[%clk 01:32:13]} {[%emt 00:00:10]} 6. e5 {[%clk 01:32:56]} {[%emt
00:00:06]} d5 {[%clk 01:32:28]} {[%emt 00:00:15]} 7. Bb5 {[%clk 01:33:19]}
{[%emt 00:00:07]} Ne4 {[%clk 01:32:38]} {[%emt 00:00:19]} 8. cxd4 {[%clk
01:33:42]} {[%emt 00:00:08]} Bb6 {[%clk 01:32:38]} {[%emt 00:00:30]} 9. Nc3
{[%clk 01:34:04]} {[%emt 00:00:09]} Bg4 {[%clk 01:32:50]} {[%emt 00:00:17]} 10.
Be3 {[%clk 01:34:26]} {[%emt 00:00:08]} O-O {[%clk 01:33:12]} {[%emt 00:00:08]}
11. h3 {[%clk 01:34:48]} {[%emt 00:00:07]} Bh5 {[%clk 01:33:36]} {[%emt
00:00:06]} 12. Qc2 {[%clk 01:34:52]} {[%emt 00:00:24]} Ba5 {[%clk 01:33:37]}
{[%emt 00:00:32]} 13. O-O {[%clk 01:34:50]} {[%emt 00:00:31]} Bxf3 {[%clk
01:33:58]} {[%emt 00:00:09]} 14. gxf3 {[%clk 01:35:11]} {[%emt 00:00:09]} Nxc3
{[%clk 01:34:22]} {[%emt 00:00:07]} 15. bxc3 {[%clk 01:35:30]} {[%emt
00:00:10]} Qd7 {[%clk 01:34:47]} {[%emt 00:00:05]} 16. Kg2 {[%clk 01:33:30]}
{[%emt 00:02:30]} Nxd4 {[%clk 01:34:05]} {[%emt 00:01:13]} 17. cxd4 {[%clk
00:54:42]} {[%emt 00:39:18]} Qxb5 {[%clk 01:33:51]} {[%emt 00:00:43]} 18. Rfb1
{[%clk 00:55:02]} {[%emt 00:00:09]} Qd7 {[%clk 01:31:57]} {[%emt 00:02:24]} 19.
Rxb7 {[%clk 00:55:14]} {[%emt 00:00:19]} Bb6 {[%clk 01:31:54]} {[%emt
00:00:33]} 20. a4 {[%clk 00:55:26]} {[%emt 00:00:18]} a5 {[%clk 01:31:01]}
{[%emt 00:01:25]} 21. Rb1 {[%clk 00:55:43]} {[%emt 00:00:12]} Qe6 {[%clk
01:30:35]} {[%emt 00:00:56]} 22. f4 {[%clk 00:55:54]} {[%emt 00:00:19]} f5
{[%clk 01:28:46]} {[%emt 00:02:18]} 23. Rc1 {[%clk 00:50:31]} {[%emt 00:05:53]}
Rad8 {[%clk 01:12:43]} {[%emt 00:16:33]} 24. Qc6 {[%clk 00:49:23]} {[%emt
00:01:39]} Qc8 {[%clk 01:12:43]} {[%emt 00:00:29]} 25. Bd2 {[%clk 00:46:16]}
{[%emt 00:03:38]} Rfe8 {[%clk 01:10:47]} {[%emt 00:02:26]} 26. Kf3 {[%clk
00:42:27]} {[%emt 00:04:18]} Re6 {[%clk 01:09:31]} {[%emt 00:01:46]} 27. Rb8
{[%clk 00:41:05]} {[%emt 00:01:53]} Rxc6 {[%clk 01:04:54]} {[%emt 00:05:06]} 28.
Rxc8 {[%clk 00:41:29]} {[%emt 00:00:05]} Rxc8 {[%clk 01:05:18]} {[%emt
00:00:06]} 29. Rxc6 {[%clk 00:41:54]} {[%emt 00:00:05]} Kf7 {[%clk 01:04:30]}
{[%emt 00:01:19]} 30. Ke3 {[%clk 00:41:52]} {[%emt 00:00:32]} Re8 {[%clk
01:04:27]} {[%emt 00:00:33]} 31. Rc1 {[%clk 00:39:23]} {[%emt 00:03:00]} Re6
{[%clk 01:02:38]} {[%emt 00:02:18]} 32. Rb1 {[%clk 00:39:05]} {[%emt 00:00:49]}
Rc6 {[%clk 00:59:29]} {[%emt 00:03:38]} 33. Rb5 {[%clk 00:35:24]} {[%emt
00:04:11]} Rc4 {[%clk 00:59:30]} {[%emt 00:00:29]} 34. Bxa5 {[%clk 00:20:25]}
{[%emt 00:15:30]} Rxd4 {[%clk 00:50:41]} {[%emt 00:09:19]} 35. Bxb6 {[%clk
00:20:42]} {[%emt 00:00:12]} Re4+ {[%clk 00:51:08]} {[%emt 00:00:03]} 36. Kf3
{[%clk 00:20:47]} {[%emt 00:00:25]} cxb6 {[%clk 00:51:34]} {[%emt 00:00:04]} 37.
Rxd5 {[%clk 00:15:21]} {[%emt 00:05:57]} Rxa4 {[%clk 00:51:56]} {[%emt
00:00:08]} 38. Rb5 {[%clk 00:15:44]} {[%emt 00:00:06]} Ra3+ {[%clk 00:50:55]}
{[%emt 00:01:31]} 39. Kg2 {[%clk 00:15:19]} {[%emt 00:00:54]} Ra6 {[%clk
00:50:52]} {[%emt 00:00:33]} 40. Rd5 {[%clk 00:14:43]} {[%emt 00:01:07]} Ke7
{[%clk 00:50:42]} {[%emt 00:00:40]} 41. Rd6 {[%clk 00:13:05]} {[%emt 00:02:08]}
Ra4 {[%clk 00:47:36]} {[%emt 00:03:37]} 1/2-1/2

[Event "Schack-SM 2024: Mastarklassen"]
[Site "Fortnox Arena, Hejaregatan 5, Vaxjo, Sweden"]
[Date "2024.07.06"]
[Round "8.7"]
[White "Liden, Tommy"]
[Black "Lind, Jan-Olov"]
[Result "0-1"]
[TimeControl "90 minutes for 40 moves + 30 minutes for the rest of the game + 30 seconds per move from move one."]
[WhiteElo "2123"]
[BlackElo "2135"]

1. e4 {[%clk 01:30:53]} {[%emt 00:00:07]} c5 {[%clk 01:30:36]} {[%emt
00:00:23]} 2. Nf3 {[%clk 01:30:43]} {[%emt 00:00:41]} g6 {[%clk 01:30:36]}
{[%emt 00:00:29]} 3. c3 {[%clk 01:31:05]} {[%emt 00:00:08]} d5 {[%clk
01:30:47]} {[%emt 00:00:19]} 4. e5 {[%clk 01:30:56]} {[%emt 00:00:40]} Nc6
{[%clk 01:31:00]} {[%emt 00:00:15]} 5. d4 {[%clk 01:30:40]} {[%emt 00:00:46]}
cxd4 {[%clk 01:31:22]} {[%emt 00:00:09]} 6. cxd4 {[%clk 01:31:05]} {[%emt
00:00:05]} Bg4 {[%clk 01:31:41]} {[%emt 00:00:11]} 7. Nbd2 {[%clk 01:30:37]}
{[%emt 00:00:59]} Qa5 {[%clk 01:18:17]} {[%emt 00:13:53]} 8. b4 {[%clk
01:27:02]} {[%emt 00:04:04]} Nxb4 {[%clk 01:10:27]} {[%emt 00:08:21]} 9. Bb2
{[%clk 01:06:21]} {[%emt 00:21:10]} Rc8 {[%clk 01:00:26]} {[%emt 00:10:31]} 10.
Rc1 {[%clk 01:06:42]} {[%emt 00:00:09]} Rxc1 {[%clk 01:00:43]} {[%emt
00:00:13]} 11. Qxc1 {[%clk 01:07:00]} {[%emt 00:00:13]} Nxa2 {[%clk 00:56:52]}
{[%emt 00:04:20]} 12. Qc2 {[%clk 01:06:32]} {[%emt 00:00:58]} Bf5 {[%clk
00:47:57]} {[%emt 00:09:26]} 13. Qb3 {[%clk 01:06:22]} {[%emt 00:00:40]} Nb4
{[%clk 00:45:59]} {[%emt 00:02:29]} 14. Bc3 {[%clk 01:05:18]} {[%emt 00:01:33]}
e6 {[%clk 00:45:26]} {[%emt 00:01:02]} 15. h3 {[%clk 00:51:24]} {[%emt
00:14:24]} h5 {[%clk 00:36:23]} {[%emt 00:09:34]} 16. Ng5 {[%clk 00:48:43]}
{[%emt 00:03:11]} a6 {[%clk 00:34:56]} {[%emt 00:01:58]} 17. Be2 {[%clk
00:43:42]} {[%emt 00:05:30]} Qa2 {[%clk 00:33:17]} {[%emt 00:02:09]} 18. O-O
{[%clk 00:41:43]} {[%emt 00:02:29]} Qxb3 {[%clk 00:32:43]} {[%emt 00:01:03]} 19.
Nxb3 {[%clk 00:42:11]} {[%emt 00:00:01]} Nc6 {[%clk 00:29:13]} {[%emt
00:04:01]} 20. Rc1 {[%clk 00:41:33]} {[%emt 00:01:09]} Ba3 {[%clk 00:28:20]}
{[%emt 00:01:22]} 21. Ra1 {[%clk 00:41:13]} {[%emt 00:00:51]} Be7 {[%clk
00:28:30]} {[%emt 00:00:19]} 22. f4 {[%clk 00:39:03]} {[%emt 00:02:41]} f6
{[%clk 00:27:57]} {[%emt 00:01:02]} 23. Nf3 {[%clk 00:35:22]} {[%emt 00:04:11]}
fxe5 {[%clk 00:23:01]} {[%emt 00:05:26]} 24. dxe5 {[%clk 00:35:09]} {[%emt
00:00:43]} h4 {[%clk 00:22:23]} {[%emt 00:01:08]} 25. Be1 {[%clk 00:34:19]}
{[%emt 00:01:21]} Kd7 {[%clk 00:22:01]} {[%emt 00:00:52]} 26. Bf2 {[%clk
00:33:46]} {[%emt 00:01:03]} Be4 {[%clk 00:21:25]} {[%emt 00:01:05]} 27. Nfd2
{[%clk 00:32:13]} {[%emt 00:02:03]} Bf5 {[%clk 00:18:04]} {[%emt 00:03:51]} 28.
Nf3 {[%clk 00:30:46]} {[%emt 00:01:57]} Kc7 {[%clk 00:16:54]} {[%emt 00:01:40]}
29. Rc1 {[%clk 00:30:28]} {[%emt 00:00:48]} Ba3 {[%clk 00:15:20]} {[%emt
00:02:04]} 30. Ra1 {[%clk 00:30:01]} {[%emt 00:00:58]} Bb2 {[%clk 00:12:04]}
{[%emt 00:03:45]} 31. Ra2 {[%clk 00:29:22]} {[%emt 00:01:10]} Bc3 {[%clk
00:12:02]} {[%emt 00:00:31]} 32. Nc5 {[%clk 00:26:25]} {[%emt 00:03:28]} Bb4
{[%clk 00:09:02]} {[%emt 00:03:31]} 33. Ng5 {[%clk 00:20:36]} {[%emt 00:06:17]}
Bxc5 {[%clk 00:07:32]} {[%emt 00:02:00]} 34. Bxc5 {[%clk 00:21:04]} {[%emt
00:00:03]} Nh6 {[%clk 00:05:47]} {[%emt 00:02:14]} 35. Bf2 {[%clk 00:20:42]}
{[%emt 00:00:52]} Ng8 {[%clk 00:03:58]} {[%emt 00:02:19]} 36. Nf3 {[%clk
00:20:15]} {[%emt 00:00:58]} Nge7 {[%clk 00:03:45]} {[%emt 00:00:42]} 37. Bxh4
{[%clk 00:19:42]} {[%emt 00:01:03]} Be4 {[%clk 00:02:44]} {[%emt 00:01:31]} 38.
Bf6 {[%clk 00:19:54]} {[%emt 00:00:18]} Bxf3 {[%clk 00:02:15]} {[%emt
00:01:00]} 39. Bxh8 {[%clk 00:20:10]} {[%emt 00:00:14]} Bxe2 {[%clk 00:02:38]}
{[%emt 00:00:06]} 40. Rxe2 {[%clk 00:20:23]} {[%emt 00:00:18]} d4 {[%clk
00:02:02]} {[%emt 00:01:06]} 41. Bf6 {[%clk 00:19:16]} {[%emt 00:01:36]} Nd5
{[%clk 00:01:22]} {[%emt 00:01:12]} 42. Bg5 {[%clk 00:19:23]} {[%emt 00:00:21]}
Nc3 {[%clk 00:29:18]} {[%emt 00:02:34]} 43. Rd2 {[%clk 00:45:42]} {[%emt
00:04:12]} Ne4 {[%clk 00:29:09]} {[%emt 00:00:38]} 44. Rd1 {[%clk 00:44:59]}
{[%emt 00:01:13]} b5 {[%clk 00:28:06]} {[%emt 00:01:32]} 45. Bh4 {[%clk
00:44:44]} {[%emt 00:00:46]} b4 {[%clk 00:27:20]} {[%emt 00:01:15]} 46. Be1
{[%clk 00:36:33]} {[%emt 00:08:42]} a5 {[%clk 00:22:09]} {[%emt 00:05:42]} 47.
g4 {[%clk 00:36:22]} {[%emt 00:00:40]} Nc3 {[%clk 00:18:15]} {[%emt 00:04:23]}
48. Rd2 {[%clk 00:36:20]} {[%emt 00:00:33]} a4 {[%clk 00:18:15]} {[%emt
00:00:31]} 49. h4 {[%clk 00:36:06]} {[%emt 00:00:43]} a3 {[%clk 00:17:50]}
{[%emt 00:00:55]} 50. h5 {[%clk 00:35:35]} {[%emt 00:01:01]} gxh5 {[%clk
00:17:54]} {[%emt 00:00:25]} 51. gxh5 {[%clk 00:34:59]} {[%emt 00:01:06]} b3
{[%clk 00:17:53]} {[%emt 00:00:32]} 52. h6 {[%clk 00:19:43]} {[%emt 00:15:45]}
b2 {[%clk 00:17:45]} {[%emt 00:00:39]} 53. h7 {[%clk 00:16:57]} {[%emt
00:03:16]} b1=Q {[%clk 00:17:56]} {[%emt 00:00:19]} 54. Rh2 {[%clk 00:17:04]}
{[%emt 00:00:23]} Qxe1+ {[%clk 00:18:03]} {[%emt 00:00:24]} 55. Kg2 {[%clk
00:17:22]} {[%emt 00:00:12]} Ne4 {[%clk 00:14:03]} {[%emt 00:04:30]} 0-1

[Event "Schack-SM 2024: Mastarklassen"]
[Site "Fortnox Arena, Hejaregatan 5, Vaxjo, Sweden"]
[Date "2024.07.06"]
[Round "8.8"]
[White "Willstedt, Lukas"]
[Black "Ask, Josef"]
[Result "0-1"]
[TimeControl "90 minutes for 40 moves + 30 minutes for the rest of the game + 30 seconds per move from move one."]
[BlackTitle "FM"]
[WhiteElo "2082"]
[BlackElo "2136"]

1. d4 {[%clk 01:29:47]} {[%emt 00:01:12]} Nf6 {[%clk 01:30:48]} {[%emt
00:00:12]} 2. Bf4 {[%clk 01:30:11]} {[%emt 00:00:07]} b6 {[%clk 01:30:02]}
{[%emt 00:01:16]} 3. e3 {[%clk 01:30:21]} {[%emt 00:00:20]} Bb7 {[%clk
01:30:16]} {[%emt 00:00:16]} 4. Nf3 {[%clk 01:30:36]} {[%emt 00:00:15]} e6
{[%clk 01:30:16]} {[%emt 00:00:31]} 5. c4 {[%clk 01:30:48]} {[%emt 00:00:17]}
Bb4+ {[%clk 01:28:44]} {[%emt 00:02:03]} 6. Nc3 {[%clk 01:30:58]} {[%emt
00:00:19]} Ne4 {[%clk 01:28:21]} {[%emt 00:00:54]} 7. Qb3 {[%clk 01:31:12]}
{[%emt 00:00:17]} Bxc3+ {[%clk 01:25:56]} {[%emt 00:02:56]} 8. bxc3 {[%clk
01:31:39]} {[%emt 00:00:02]} O-O {[%clk 01:25:09]} {[%emt 00:01:16]} 9. Be2
{[%clk 01:31:40]} {[%emt 00:00:28]} f5 {[%clk 01:21:46]} {[%emt 00:03:54]} 10.
h4 {[%clk 01:29:15]} {[%emt 00:02:56]} Nc6 {[%clk 01:18:23]} {[%emt 00:03:52]}
11. Ng5 {[%clk 01:23:09]} {[%emt 00:06:36]} Na5 {[%clk 01:16:38]} {[%emt
00:02:17]} 12. Qb2 {[%clk 01:22:14]} {[%emt 00:01:24]} Nf6 {[%clk 01:12:53]}
{[%emt 00:04:16]} 13. Rg1 {[%clk 01:19:44]} {[%emt 00:02:58]} h6 {[%clk
01:11:38]} {[%emt 00:01:44]} 14. Nh3 {[%clk 01:19:53]} {[%emt 00:00:21]} Ne4
{[%clk 01:09:45]} {[%emt 00:02:25]} 15. h5 {[%clk 01:16:08]} {[%emt 00:04:14]}
Qh4 {[%clk 01:03:01]} {[%emt 00:07:14]} 16. c5 {[%clk 01:09:55]} {[%emt
00:06:43]} Rac8 {[%clk 00:56:06]} {[%emt 00:07:24]} 17. O-O-O {[%clk 01:06:38]}
{[%emt 00:03:47]} Bd5 {[%clk 00:42:23]} {[%emt 00:14:13]} 18. g3 {[%clk
00:57:56]} {[%emt 00:09:11]} Qxh3 {[%clk 00:37:34]} {[%emt 00:05:20]} 19. Rh1
{[%clk 00:58:12]} {[%emt 00:00:13]} Qg2 {[%clk 00:37:14]} {[%emt 00:00:51]} 20.
Rhg1 {[%clk 00:57:41]} {[%emt 00:01:01]} Qxf2 {[%clk 00:36:26]} 0-1